fUST/lending_fUST_20241112
["ID","MTS","AMOUNT","RATE_DAILY","PERIOD"]
[342085250,1731425450282,-554.79,0.00022465,2]
[342085251,1731425450297,-500.0,0.00022465,2]
[342085252,1731425450312,-500.0,0.00022465,2]
[342085253,1731425450327,-500.0,0.00022465,2]
[342085254,1731425450343,-500.0,0.00022465,2]
[342085255,1731425450360,-500.0,0.00022465,2]
[342085256,1731425450375,-500.0,0.00022465,2]
[342085257,1731425450390,-500.0,0.00022465,2]
[342085258,1731425450405,-518.67,0.00022465,2]
[342085259,1731425450416,-500.0,0.00022465,2]
[342085260,1731425450430,-500.0,0.00022465,2]
[342085261,1731425450446,-500.0,0.00022465,2]
[342085262,1731425450460,-500.0,0.00022465,2]
[342085263,1731425450475,-500.0,0.00022465,2]
[342085264,1731425450490,-500.0,0.00022465,2]
[342085265,1731425450505,-3125.54,0.00022465,2]
[342085266,1731425450515,-386.51804338,0.00022465,2]
[342085267,1731425450531,-500.0,0.00022465,2]
[342085268,1731425450546,-500.0,0.00022465,2]
[342085269,1731425450561,-500.0,0.00022465,2]
[342085270,1731425450573,-500.0,0.00022465,2]
[342085271,1731425450586,-500.0,0.00022465,2]
[342085272,1731425450599,-500.0,0.00022465,2]
[342085273,1731425450612,-500.0,0.00022465,2]
[342085274,1731425450623,-1773.36,0.00022465,2]
[342085275,1731425450635,-500.0,0.00022465,2]
[342085276,1731425450647,-500.0,0.00022465,2]
[342085277,1731425450660,-1514.29,0.00022465,2]
[342085278,1731425450672,-500.0,0.00022465,2]
[342085279,1731425450685,-500.0,0.00022465,2]
[342085280,1731425450698,-518.17,0.00022465,2]
[342085281,1731425450710,-500.0,0.00022465,2]
[342085282,1731425450723,-1132.77,0.00022465,2]
[342085283,1731425450735,-553.4,0.00022465,2]
[342085284,1731425450747,-500.0,0.00022465,2]
[342085285,1731425450759,-500.0,0.00022465,2]
[342085286,1731425450773,-696.83,0.00022465,2]
[342085287,1731425450785,-500.0,0.00022465,2]
[342085288,1731425450797,-648.66,0.00022465,2]
[342085289,1731425450809,-798.58,0.00022465,2]
[342085290,1731425450821,-500.0,0.00022465,2]
[342085291,1731425450834,-500.0,0.00022465,2]
[342085292,1731425450847,-500.0,0.00022465,2]
[342085293,1731425450859,-500.0,0.00022465,2]
[342085294,1731425450873,-936.28,0.00022465,2]
[342085295,1731425450884,-1447.16,0.00022465,2]
[342085296,1731425450897,-500.0,0.00022465,2]
[342085297,1731425450909,-500.0,0.00022465,2]
[342085298,1731425450921,-500.0,0.00022465,2]
[342085299,1731425450933,-500.0,0.00022465,2]
[342085300,1731425450946,-2336.0,0.00022465,2]
[342085301,1731425450958,-1198.53,0.00022465,2]
[342085302,1731425450970,-590.60745123,0.00022465,2]
[342085303,1731425450983,-500.0,0.00022465,2]
[342085304,1731425450995,-500.0,0.00022465,2]
[342085305,1731425451007,-500.0,0.00022465,2]
[342085306,1731425451024,-812.09,0.00022465,2]
[342085307,1731425451036,-500.0,0.00022465,2]
[342085308,1731425451046,-500.0,0.00022465,2]
[342085309,1731425451056,-6065.79,0.00022465,2]
[342085310,1731425451065,-500.0,0.00022465,2]
[342085311,1731425451074,-500.0,0.00022465,2]
[342085312,1731425451084,-573.06,0.00022465,2]
[342085313,1731425451093,-500.0,0.00022465,2]
[342085314,1731425451102,-561.15,0.00022465,2]
[342085315,1731425451111,-299.83,0.00022465,2]
[342085316,1731425451246,-500.0,0.00022465,2]
[342085317,1731425451256,-2735.74,0.00022465,2]
[342085318,1731425451266,-500.0,0.00022465,2]
[342085319,1731425451279,-879.72,0.00022465,2]
[342085320,1731425451288,-500.0,0.00022465,2]
[342085321,1731425451297,-500.0,0.00022465,2]
[342085322,1731425451306,-500.0,0.00022465,2]
[342085323,1731425451315,-150.05,0.00022465,2]
[342085324,1731425451325,-500.0,0.00022465,2]
[342085325,1731425451334,-1406.22,0.00022465,2]
[342085326,1731425451345,-581.37,0.00022465,2]
[342085327,1731425451355,-500.0,0.00022465,2]
[342085328,1731425451365,-6473.33,0.00022465,2]
[342085329,1731425451374,-500.0,0.00022465,2]
[342085330,1731425451384,-1590.53,0.00022465,2]
[342085331,1731425451394,-500.0,0.00022465,2]
[342085332,1731425451403,-233.67379478,0.00022465,2]
[342085333,1731425451414,-765.9,0.00022465,2]
[342085334,1731425451423,-668.23,0.00022465,2]
[342085335,1731425451432,-558.57,0.00022465,2]
[342085336,1731425451442,-1392.4,0.00022465,2]
[342085337,1731425451451,-500.0,0.00022465,2]
[342085338,1731425451460,-500.0,0.00022465,2]
[342085339,1731425451469,-861.84,0.00022465,2]
[342085340,1731425451478,-150.05,0.00022465,2]
[342085341,1731425451487,-500.0,0.00022465,2]
[342085342,1731425451496,-573.62,0.00022465,2]
[342085343,1731425451505,-500.0,0.00022465,2]
[342085344,1731425451515,-500.0,0.00022465,2]
[342085345,1731425451528,-500.0,0.00022465,2]
[342085346,1731425451538,-955.55,0.00022465,2]
[342085348,1731425451547,-500.0,0.00022465,2]
[342085349,1731425451556,-500.0,0.00022465,2]
[342085350,1731425451565,-6763.45,0.00022465,2]
[342085351,1731425451574,-500.0,0.00022465,2]
[342085352,1731425451584,-9204.1,0.00022465,2]
[342085353,1731425451594,-500.0,0.00022465,2]
[342085354,1731425451603,-1341.82,0.00022465,2]
[342085355,1731425451612,-500.0,0.00022465,2]
[342085356,1731425451621,-1000.0,0.00022465,2]
[342085357,1731425451630,-18053.22,0.00022465,2]
[342085358,1731425451640,-500.0,0.00022465,2]
[342085359,1731425451649,-500.0,0.00022465,2]
[342085360,1731425451659,-503.02956371,0.00022465,2]
[342085361,1731425451668,-500.0,0.00022465,2]
[342085362,1731425451677,-500.0,0.00022473,2]
[342085363,1731425451686,-500.0,0.00022473,2]
[342085364,1731425451695,-500.0,0.00022473,2]
[342085365,1731425451705,-420.0,0.00022474,2]
[342085366,1731425451714,-1000.0,0.00022521,2]
[342085367,1731425451723,-1000.0,0.00022521,2]
[342085368,1731425451732,-1000.0,0.00022521,2]
[342085369,1731425451742,-1008.33239077,0.00022521,2]
[342085370,1731425451751,-1000.0,0.00022521,2]
[342085371,1731425451760,-1000.0,0.00022521,2]
[342085372,1731425451771,-1000.0,0.00022521,2]
[342085373,1731425451781,-6000.0,0.00022639,2]
[342085374,1731425451791,-388.02160351,0.00022639,2]
[342085375,1731425451800,-3216.0,0.00022672,4]
[342085376,1731425451810,-1000.0,0.00022721,2]
[342085377,1731425451819,-1000.0,0.00022721,2]
[342085378,1731425451828,-1000.0,0.00022721,2]
[342085379,1731425451838,-1000.0,0.00022721,2]
[342085380,1731425451847,-1000.0,0.00022721,2]
[342085381,1731425451856,-1000.0,0.00022721,2]
[342085382,1731425451866,-504.86968025,0.00022721,2]
[342085383,1731425451875,-1000.0,0.00022721,2]
[342085384,1731425451884,-1000.0,0.00022721,2]
[342085385,1731425451894,-1000.0,0.00022721,2]
[342085386,1731425451903,-150.05,0.00022739,2]
[342085387,1731425451913,-500.0,0.00022739,2]
[342085388,1731425451922,-996.42140391,0.00022739,2]
[342085389,1731425451931,-500.0,0.00022739,2]
[342085390,1731425451941,-150.05,0.00022739,2]
[342085391,1731425451950,-500.0,0.00022739,2]
[342085392,1731425451959,-176.08467707,0.00022739,2]
[342085393,1731425451969,-500.0,0.00022739,2]
[342085394,1731425451978,-500.0,0.00022739,2]
[342085395,1731425451987,-500.0,0.00022739,2]
[342085396,1731425451996,-500.0,0.00022739,2]
[342085397,1731425452005,-500.0,0.00022739,2]
[342085398,1731425452014,-500.0,0.00022739,2]
[342085399,1731425452026,-500.0,0.00022739,2]
[342085400,1731425452035,-500.0,0.00022739,2]
[342085401,1731425452044,-500.0,0.00022739,2]
[342085402,1731425452053,-500.0,0.00022739,2]
[342085403,1731425452063,-500.0,0.00022739,2]
[342085404,1731425452072,-151.0,0.00022739,7]
[342085405,1731425452081,-151.0,0.00022739,7]
[342085406,1731425452090,-548.5,0.00022739,2]
[342085407,1731425452099,-500.0,0.00022739,2]
[342085408,1731425452108,-500.0,0.00022739,2]
[342085409,1731425452117,-500.0,0.00022739,2]
[342085410,1731425452127,-500.0,0.00022739,2]
[342085411,1731425452136,-500.0,0.00022739,2]
[342085412,1731425452146,-500.0,0.00022739,2]
[342085413,1731425452155,-598.76,0.00022739,2]
[342085414,1731425452164,-828.14,0.00022739,2]
[342085415,1731425452174,-620.09,0.00022739,2]
[342085416,1731425452183,-500.0,0.00022739,2]
[342085417,1731425452193,-500.0,0.00022739,2]
[342085418,1731425452202,-500.0,0.00022739,2]
[342085419,1731425452211,-500.0,0.00022739,2]
[342085420,1731425452220,-500.0,0.00022739,2]
[342085421,1731425452229,-500.0,0.00022739,2]
[342085422,1731425452239,-500.0,0.00022739,2]
[342085423,1731425452248,-500.0,0.00022739,2]
[342085424,1731425452258,-482.14960203,0.00022739,2]
[342085425,1731425452267,-500.0,0.00022739,2]
[342085426,1731425452280,-554.79,0.00022739,2]
[342085427,1731425452290,-500.0,0.00022739,2]
[342085428,1731425452299,-500.0,0.00022739,2]
[342085429,1731425452308,-500.0,0.00022739,2]
[342085430,1731425452318,-500.0,0.00022739,2]
[342085431,1731425452327,-518.67,0.00022739,2]
[342085432,1731425452336,-515.29763463,0.00022739,2]
[342085433,1731425452346,-500.0,0.00022739,2]
[342085434,1731425452359,-500.0,0.00022739,2]
[342085435,1731425452368,-500.0,0.00022739,2]
[342085436,1731425452377,-500.0,0.00022739,2]
[342085437,1731425452386,-3125.54,0.00022739,2]
[342085438,1731425452396,-500.0,0.00022739,2]
[342085439,1731425452406,-500.0,0.00022739,2]
[342085440,1731425452415,-500.0,0.00022739,2]
[342085441,1731425452425,-501.31104978,0.00022739,2]
[342085442,1731425452435,-500.0,0.00022739,2]
[342085443,1731425452445,-500.0,0.00022739,2]
[342085444,1731425452454,-500.0,0.00022739,2]
[342085445,1731425452463,-1773.36,0.00022739,2]
[342085446,1731425452473,-500.0,0.00022739,2]
[342085447,1731425452482,-500.0,0.00022739,2]
[342085448,1731425452491,-1514.29,0.00022739,2]
[342085449,1731425452501,-500.0,0.00022739,2]
[342085450,1731425452510,-500.0,0.00022739,2]
[342085451,1731425452520,-518.17,0.00022739,2]
[342085452,1731425452534,-509.44007315,0.00022739,2]
[342085453,1731425452543,-1132.77,0.00022739,2]
[342085454,1731425452553,-553.4,0.00022739,2]
[342085455,1731425452562,-646.82615551,0.00022739,2]
[342085456,1731425452571,-500.0,0.00022739,2]
[342085457,1731425452581,-696.83,0.00022739,2]
[342085458,1731425452590,-500.0,0.00022739,2]
[342085459,1731425452600,-648.66,0.00022739,2]
[342085460,1731425452609,-798.58,0.00022739,2]
[342085461,1731425452619,-500.0,0.00022739,2]
[342085462,1731425452629,-500.0,0.00022739,2]
[342085463,1731425452638,-500.0,0.00022739,2]
[342085464,1731425452649,-500.0,0.00022739,2]
[342085465,1731425452658,-936.28,0.00022739,2]
[342085466,1731425452668,-1447.16,0.00022739,2]
[342085467,1731425452677,-500.0,0.00022739,2]
[342085468,1731425452686,-500.0,0.00022739,2]
[342085469,1731425452697,-500.0,0.00022739,2]
[342085470,1731425452706,-500.0,0.00022739,2]
[342085471,1731425452716,-2336.0,0.00022739,2]
[342085472,1731425452726,-1198.53,0.00022739,2]
[342085473,1731425452736,-500.0,0.00022739,2]
[342085474,1731425452746,-500.0,0.00022739,2]
[342085475,1731425452755,-500.0,0.00022739,2]
[342085476,1731425452765,-812.09,0.00022739,2]
[342085477,1731425452781,-500.0,0.00022739,2]
[342085478,1731425452791,-500.0,0.00022739,2]
[342085479,1731425452801,-6065.79,0.00022739,2]
[342085480,1731425452811,-500.0,0.00022739,2]
[342085481,1731425452820,-573.06,0.00022739,2]
[342085482,1731425452830,-500.0,0.00022739,2]
[342085483,1731425452840,-500.0,0.00022739,2]
[342085484,1731425452850,-561.15,0.00022739,2]
[342085485,1731425452859,-500.0,0.00022739,2]
[342085486,1731425452869,-2735.74,0.00022739,2]
[342085487,1731425452878,-500.0,0.00022739,2]
[342085488,1731425452888,-879.72,0.00022739,2]
[342085489,1731425452897,-500.0,0.00022739,2]
[342085490,1731425452907,-500.0,0.00022739,2]
[342085491,1731425452916,-1406.22,0.00022739,2]
[342085492,1731425452926,-581.37,0.00022739,2]
[342085493,1731425452935,-500.0,0.00022739,2]
[342085494,1731425452945,-6473.33,0.00022739,2]
[342085495,1731425452955,-500.0,0.00022739,2]
[342085496,1731425452964,-1590.53,0.00022739,2]
[342085497,1731425452974,-500.0,0.00022739,2]
[342085498,1731425452983,-765.9,0.00022739,2]
[342085499,1731425452993,-668.23,0.00022739,2]
[342085500,1731425453002,-558.57,0.00022739,2]
[342085501,1731425453011,-1392.4,0.00022739,2]
[342085502,1731425453020,-500.0,0.00022739,2]
[342085503,1731425453034,-861.84,0.00022739,2]
[342085504,1731425453043,-500.0,0.00022739,2]
[342085505,1731425453052,-573.62,0.00022739,2]
[342085506,1731425453062,-500.0,0.00022739,2]
[342085507,1731425453071,-500.0,0.00022739,2]
[342085508,1731425453081,-500.0,0.00022739,2]
[342085509,1731425453091,-955.55,0.00022739,2]
[342085510,1731425453100,-500.0,0.00022739,2]
[342085511,1731425453109,-500.0,0.00022739,2]
[342085512,1731425453118,-6763.45,0.00022739,2]
[342085513,1731425453127,-500.0,0.00022739,2]
[342085514,1731425453137,-9204.1,0.00022739,2]
[342085515,1731425453146,-500.0,0.00022739,2]
[342085516,1731425453156,-1341.82,0.00022739,2]
[342085517,1731425453165,-500.0,0.00022739,2]
[342085518,1731425453174,-1000.0,0.00022739,2]
[342085519,1731425453184,-18053.22,0.00022739,2]
[342085520,1731425453194,-500.0,0.00022739,2]
[342085521,1731425453203,-500.0,0.00022739,2]
[342085522,1731425453212,-500.0,0.00022739,2]
[342085523,1731425453222,-465.73366297,0.00022746,2]
[342085524,1731425453231,-530.0,0.00022897,2]
[342085525,1731425453241,-1121.0,0.00022897,2]
[342085526,1731425453250,-2392.0,0.00022897,2]
[342085527,1731425453259,-388.02160351,0.00022913,2]
[342085528,1731425453268,-300.0,0.00023,2]
[342085529,1731425453282,-205.40852541,0.00023013,2]
[342085530,1731425453291,-500.0,0.00023013,2]
[342085531,1731425453301,-500.0,0.00023013,2]
[342085532,1731425453310,-150.05,0.00023013,2]
[342085533,1731425453320,-394.37,0.00023013,2]
[342085534,1731425453329,-500.0,0.00023013,2]
[342085535,1731425453338,-500.0,0.00023013,2]
[342085536,1731425453349,-500.0,0.00023013,2]
[342085537,1731425453359,-500.0,0.00023013,2]
[342085538,1731425453369,-500.0,0.00023013,2]
[342085539,1731425453378,-500.0,0.00023013,2]
[342085540,1731425453388,-500.0,0.00023013,2]
[342085541,1731425453398,-500.0,0.00023013,2]
[342085542,1731425453407,-500.0,0.00023013,2]
[342085543,1731425453417,-500.0,0.00023013,2]
[342085544,1731425453510,-500.0,0.00023013,2]
[342085545,1731425453521,-548.5,0.00023013,2]
[342085546,1731425453534,-500.0,0.00023013,2]
[342085547,1731425453544,-500.0,0.00023013,2]
[342085548,1731425453553,-500.0,0.00023013,2]
[342085549,1731425453563,-500.0,0.00023013,2]
[342085550,1731425453572,-500.0,0.00023013,2]
[342085551,1731425453581,-500.0,0.00023013,2]
[342085552,1731425453591,-598.76,0.00023013,2]
[342085553,1731425453600,-828.14,0.00023013,2]
[342085554,1731425453609,-620.09,0.00023013,2]
[342085555,1731425453618,-500.0,0.00023013,2]
[342085556,1731425453628,-535.62900254,0.00023013,2]
[342085557,1731425453637,-500.0,0.00023013,2]
[342085558,1731425453647,-397.16326296,0.00023013,2]
[342085559,1731425453656,-500.0,0.00023013,2]
[342085560,1731425453666,-500.0,0.00023013,2]
[342085561,1731425453675,-500.0,0.00023013,2]
[342085562,1731425453685,-554.79,0.00023013,2]
[342085563,1731425453694,-500.0,0.00023013,2]
[342085564,1731425453703,-500.0,0.00023013,2]
[342085565,1731425453712,-500.0,0.00023013,2]
[342085566,1731425453721,-500.0,0.00023013,2]
[342085567,1731425453730,-518.67,0.00023013,2]
[342085568,1731425453740,-519.93482625,0.00023013,2]
[342085569,1731425453749,-500.0,0.00023013,2]
[342085570,1731425453759,-500.0,0.00023013,2]
[342085571,1731425453769,-3125.54,0.00023013,2]
[342085572,1731425453783,-500.0,0.00023013,2]
[342085573,1731425453792,-385.22328576,0.00023013,2]
[342085574,1731425453802,-500.0,0.00023013,2]
[342085575,1731425453811,-500.0,0.00023013,2]
[342085576,1731425453821,-1773.36,0.00023013,2]
[342085577,1731425453830,-169.49058404,0.00023013,2]
[342085578,1731425453840,-500.0,0.00023013,2]
[342085579,1731425453849,-500.0,0.00023013,2]
[342085580,1731425453859,-1514.29,0.00023013,2]
[342085581,1731425453869,-518.17,0.00023013,2]
[342085582,1731425453878,-1132.77,0.00023013,2]
[342085583,1731425453887,-553.4,0.00023013,2]
[342085584,1731425453896,-500.0,0.00023013,2]
[342085585,1731425453906,-696.83,0.00023013,2]
[342085586,1731425453915,-648.66,0.00023013,2]
[342085587,1731425453925,-798.58,0.00023013,2]
[342085588,1731425453943,-500.0,0.00023013,2]
[342085589,1731425453953,-500.0,0.00023013,2]
[342085590,1731425453962,-500.0,0.00023013,2]
[342085591,1731425453972,-936.28,0.00023013,2]
[342085592,1731425453981,-1447.16,0.00023013,2]
[342085593,1731425453991,-500.0,0.00023013,2]
[342085594,1731425454000,-276.33388247,0.00023013,2]
[342085595,1731425454009,-500.0,0.00023013,2]
[342085596,1731425454019,-2336.0,0.00023013,2]
[342085597,1731425454031,-1198.53,0.00023013,2]
[342085598,1731425454040,-500.0,0.00023013,2]
[342085599,1731425454050,-812.09,0.00023013,2]
[342085600,1731425454059,-500.0,0.00023013,2]
[342085601,1731425454068,-500.0,0.00023013,2]
[342085602,1731425454077,-500.0,0.00023013,2]
[342085603,1731425454087,-6065.79,0.00023013,2]
[342085604,1731425454097,-500.0,0.00023013,2]
[342085605,1731425454105,-500.0,0.00023013,2]
[342085606,1731425454115,-573.06,0.00023013,2]
[342085607,1731425454124,-500.0,0.00023013,2]
[342085608,1731425454134,-561.15,0.00023013,2]
[342085609,1731425454143,-285.02531128,0.00023013,2]
[342085610,1731425454152,-2735.74,0.00023013,2]
[342085611,1731425454162,-487.68293745,0.00023013,2]
[342085612,1731425454171,-879.72,0.00023013,2]
[342085613,1731425454180,-500.0,0.00023013,2]
[342085614,1731425454189,-500.0,0.00023013,2]
[342085615,1731425454198,-1406.22,0.00023013,2]
[342085616,1731425454207,-581.37,0.00023013,2]
[342085617,1731425454217,-269.28808901,0.00023013,2]
[342085618,1731425454226,-6473.33,0.00023013,2]
[342085619,1731425454235,-500.0,0.00023013,2]
[342085620,1731425454245,-1590.53,0.00023013,2]
[342085621,1731425454254,-500.0,0.00023013,2]
[342085622,1731425454263,-765.9,0.00023013,2]
[342085623,1731425454272,-668.23,0.00023013,2]
[342085624,1731425454285,-558.57,0.00023013,2]
[342085625,1731425454294,-1392.4,0.00023013,2]
[342085626,1731425454303,-861.84,0.00023013,2]
[342085627,1731425454312,-500.0,0.00023013,2]
[342085628,1731425454321,-573.62,0.00023013,2]
[342085629,1731425454331,-500.0,0.00023013,2]
[342085630,1731425454343,-500.0,0.00023013,2]
[342085631,1731425454359,-609.68,0.00023013,2]
[342085632,1731425454368,-955.55,0.00023013,2]
[342085633,1731425454377,-538.2,0.00023013,2]
[342085634,1731425454386,-500.0,0.00023013,2]
[342085635,1731425454397,-6763.45,0.00023013,2]
[342085636,1731425454406,-9204.1,0.00023013,2]
[342085637,1731425454415,-500.0,0.00023013,2]
[342085638,1731425454424,-1341.82,0.00023013,2]
[342085639,1731425454434,-500.0,0.00023013,2]
[342085640,1731425454443,-18053.22,0.00023013,2]
[342085641,1731425454453,-500.0,0.00023013,2]
[342085642,1731425454462,-500.0,0.00023013,2]
[342085643,1731425454471,-445.67707491,0.00023021,2]
[342085644,1731425454480,-1000.0,0.00023021,2]
[342085645,1731425454489,-1159.4405911,0.00023055,2]
[342085646,1731425454498,-180.785289,0.000232,2]
[342085647,1731425454507,-1000.0,0.00023286,4]
[342085648,1731425454517,-500.0,0.00023287,2]
[342085649,1731425454530,-793.32241789,0.00023287,2]
[342085650,1731425454539,-250.71772124,0.00023287,2]
[342085651,1731425454549,-500.0,0.00023287,2]
[342085652,1731425454558,-500.0,0.00023287,2]
[342085653,1731425454567,-301.14726373,0.00023287,2]
[342085654,1731425454576,-500.0,0.00023287,2]
[342085655,1731425454586,-500.0,0.00023287,2]
[342085656,1731425454595,-500.0,0.00023287,2]
[342085657,1731425454604,-500.0,0.00023287,2]
[342085658,1731425454613,-500.0,0.00023287,2]
[342085659,1731425454623,-500.0,0.00023287,2]
[342085660,1731425454632,-500.0,0.00023287,2]
[342085661,1731425454641,-500.0,0.00023287,2]
[342085662,1731425454651,-548.5,0.00023287,2]
[342085663,1731425454660,-500.0,0.00023287,2]
[342085664,1731425454669,-500.0,0.00023287,2]
[342085665,1731425454678,-500.0,0.00023287,2]
[342085666,1731425454687,-500.0,0.00023287,2]
[342085667,1731425454696,-500.0,0.00023287,2]
[342085668,1731425454706,-500.0,0.00023287,2]
[342085669,1731425454715,-598.76,0.00023287,2]
[342085670,1731425454725,-828.14,0.00023287,2]
[342085671,1731425454734,-620.09,0.00023287,2]
[342085672,1731425454743,-500.0,0.00023287,2]
[342085673,1731425454753,-500.0,0.00023287,2]
[342085674,1731425454762,-500.0,0.00023287,2]
[342085675,1731425454771,-500.0,0.00023287,2]
[342085676,1731425454785,-500.0,0.00023287,2]
[342085677,1731425454795,-554.79,0.00023287,2]
[342085678,1731425454804,-576.02377808,0.00023287,2]
[342085679,1731425454813,-500.0,0.00023287,2]
[342085680,1731425454822,-500.0,0.00023287,2]
[342085681,1731425454831,-500.0,0.00023287,2]
[342085682,1731425454840,-518.67,0.00023287,2]
[342085683,1731425454850,-500.0,0.00023287,2]
[342085684,1731425454859,-500.0,0.00023287,2]
[342085685,1731425454868,-3125.54,0.00023287,2]
[342085686,1731425454877,-500.0,0.00023287,2]
[342085687,1731425454887,-500.0,0.00023287,2]
[342085688,1731425454896,-500.0,0.00023287,2]
[342085689,1731425454905,-1773.36,0.00023287,2]
[342085690,1731425454914,-500.0,0.00023287,2]
[342085691,1731425454924,-500.0,0.00023287,2]
[342085692,1731425454933,-1514.29,0.00023287,2]
[342085693,1731425454942,-518.17,0.00023287,2]
[342085694,1731425454952,-1132.77,0.00023287,2]
[342085695,1731425454961,-553.4,0.00023287,2]
[342085696,1731425454971,-500.0,0.00023287,2]
[342085697,1731425454980,-696.83,0.00023287,2]
[342085698,1731425454989,-648.66,0.00023287,2]
[342085699,1731425454998,-798.58,0.00023287,2]
[342085700,1731425455007,-500.0,0.00023287,2]
[342085701,1731425455016,-500.0,0.00023287,2]
[342085702,1731425455027,-500.0,0.00023287,2]
[342085703,1731425455036,-936.28,0.00023287,2]
[342085704,1731425455045,-1447.16,0.00023287,2]
[342085705,1731425455054,-500.0,0.00023287,2]
[342085706,1731425455063,-1959.15812387,0.00023287,2]
[342085707,1731425455072,-1198.53,0.00023287,2]
[342085708,1731425455081,-500.0,0.00023287,2]
[342085709,1731425455090,-812.09,0.00023287,2]
[342085710,1731425455099,-500.0,0.00023287,2]
[342085711,1731425455108,-500.0,0.00023287,2]
[342085712,1731425455118,-500.0,0.00023287,2]
[342085713,1731425455127,-6065.79,0.00023287,2]
[342085714,1731425455136,-500.0,0.00023287,2]
[342085715,1731425455147,-500.0,0.00023287,2]
[342085716,1731425455156,-573.06,0.00023287,2]
[342085717,1731425455165,-500.0,0.00023287,2]
[342085718,1731425455174,-561.15,0.00023287,2]
[342085719,1731425455184,-2735.74,0.00023287,2]
[342085720,1731425455192,-879.72,0.00023287,2]
[342085721,1731425455201,-500.0,0.00023287,2]
[342085722,1731425455211,-500.0,0.00023287,2]
[342085723,1731425455220,-1406.22,0.00023287,2]
[342085724,1731425455229,-581.37,0.00023287,2]
[342085725,1731425455238,-6473.33,0.00023287,2]
[342085726,1731425455247,-500.0,0.00023287,2]
[342085727,1731425455256,-1590.53,0.00023287,2]
[342085728,1731425455265,-500.0,0.00023287,2]
[342085729,1731425455277,-765.9,0.00023287,2]
[342085730,1731425455286,-668.23,0.00023287,2]
[342085731,1731425455295,-558.57,0.00023287,2]
[342085732,1731425455304,-1392.4,0.00023287,2]
[342085733,1731425455313,-861.84,0.00023287,2]
[342085734,1731425455322,-573.62,0.00023287,2]
[342085735,1731425455332,-500.0,0.00023287,2]
[342085736,1731425455341,-500.0,0.00023287,2]
[342085737,1731425455353,-186.38102747,0.00023287,2]
[342085738,1731425455362,-955.55,0.00023287,2]
[342085739,1731425455371,-500.0,0.00023287,2]
[342085740,1731425455380,-6763.45,0.00023287,2]
[342085741,1731425455389,-9204.1,0.00023287,2]
[342085742,1731425455399,-500.0,0.00023287,2]
[342085743,1731425455408,-1341.82,0.00023287,2]
[342085744,1731425455417,-18053.22,0.00023287,2]
[342085745,1731425455427,-500.0,0.00023287,2]
[342085746,1731425455436,-1500.0,0.00023522,2]
[342085747,1731425455445,-1500.0,0.00023522,2]
[342085748,1731425455454,-1500.0,0.00023522,2]
[342085749,1731425455462,-1500.94125791,0.00023522,2]
[342085750,1731425455471,-191.65072151,0.00023522,2]